lending/lending_fUSD_20240111
["ID","MTS","AMOUNT","RATE_DAILY","PERIOD"]
[311196009,1704979839129,-411.0,0.00038787,5]
[311196011,1704979839138,-471.57,0.00038798,2]
[311196013,1704979839147,-153.46,0.000388,3]
[311196015,1704979839157,-153.46,0.000388,3]
[311196017,1704979839167,-153.46,0.000388,3]
[311196019,1704979839176,-153.46,0.000388,3]
[311196021,1704979839185,-153.46,0.000388,3]
[311196023,1704979839194,-153.46,0.000388,3]
[311196025,1704979839203,-153.46,0.000388,3]
[311196027,1704979839212,-153.46,0.000388,3]
[311196029,1704979839220,-153.46,0.000388,3]
[311196031,1704979839230,-153.46,0.000388,3]
[311196033,1704979839239,-153.46,0.000388,3]
[311196035,1704979839248,-173.914164,0.0003886,2]
[311196037,1704979839259,-193.23796,0.0003886,2]
[311196039,1704979839268,-151.95222082,0.00038877,7]
[311196041,1704979839278,-1545.64420957,0.00038896,12]
[311196043,1704979839287,-414.22,0.00038943,2]
[311196045,1704979839296,-436.07,0.00038975,2]
[311196047,1704979839305,-201.6,0.00038986,2]
[311196049,1704979839314,-798.4,0.00038986,2]
[311196051,1704979839324,-2242.96619263,0.00039,8]
[311196053,1704979839333,-500.0,0.00039,3]
[311196055,1704979839343,-150.0,0.00039,2]
[311196057,1704979839352,-3000.0,0.00039,2]
[311196059,1704979839361,-3000.0,0.00039,2]
[311196060,1704979839370,-3000.0,0.00039,2]
[311196062,1704979839380,-3000.0,0.00039,2]
[311196065,1704979839389,-3000.0,0.00039,2]
[311196067,1704979839402,-3000.0,0.00039,2]
[311196069,1704979839411,-3000.0,0.00039,2]
[311196071,1704979839421,-3000.0,0.00039,2]
[311196073,1704979839430,-3000.0,0.00039,2]
[311196075,1704979839439,-5332.5822099,0.00039,2]
[311196077,1704979839449,-155.0,0.00039,2]
[311196079,1704979839458,-256.42,0.00039,30]
[311196080,1704979839468,-151.22078088,0.00039075,3]
[311196083,1704979839478,-220.79426591,0.00039078,2]
[311196085,1704979839487,-250.0,0.00039078,2]
[311196087,1704979839497,-3147.0,0.0003909,3]
[311196088,1704979839507,-504.5,0.00039137,30]
[311196090,1704979839517,-150.49,0.00039138,2]
[311196092,1704979839527,-1408.29,0.00039138,2]
[311196094,1704979839536,-414.22,0.00039144,2]
[311196096,1704979839546,-30000.000001,0.00039146,10]
[311196099,1704979839556,-158.16,0.00039147,2]
[311196100,1704979839566,-158.16,0.00039147,2]
[311196102,1704979839576,-158.16,0.00039147,2]
[311196105,1704979839586,-93247.548163,0.00039148,3]
[311196107,1704979839595,-1408.29,0.00039156,2]
[311196109,1704979839605,-93247.548163,0.00039157,4]
[311196111,1704979839615,-150.49,0.00039157,2]
[311196113,1704979839625,-1408.29,0.00039158,2]
[311196115,1704979839634,-93247.548163,0.00039166,4]
[311196117,1704979839643,-93247.548163,0.00039167,4]
[311196118,1704979839653,-186495.096326,0.00039168,4]
[311196119,1704979839663,-150.49,0.00039168,2]
[311196121,1704979839676,-1408.29,0.00039168,2]
[311196123,1704979839686,-225.26176304,0.00039168,2]
[311196124,1704979839696,-574.35128739,0.00039175,4]
[311196125,1704979839705,-167.23513792,0.00039176,4]
[311196126,1704979839715,-226.3440456,0.00039176,4]
[311196127,1704979839724,-5873.47318578,0.00039176,2]
[311196128,1704979839734,-301.28698158,0.00039176,4]
[311196129,1704979839743,-583.20558702,0.00039176,4]
[311196130,1704979839752,-690.20207924,0.00039176,2]
[311196131,1704979839762,-2878.63720591,0.00039176,4]
[311196132,1704979839771,-283.77089221,0.00039176,4]
[311196133,1704979839781,-155.0,0.00039176,2]
[311196134,1704979839791,-916.78147671,0.00039176,4]
[311196135,1704979839800,-288.06509439,0.00039177,9]
[311196136,1704979839810,-608.46323139,0.00039177,2]
[311196137,1704979839819,-500.0,0.00039178,4]
[311196138,1704979839828,-500.0,0.00039178,4]
[311196139,1704979839838,-500.0,0.00039178,4]
[311196140,1704979839848,-500.0,0.00039178,4]
[311196141,1704979839858,-500.0,0.00039178,4]
[311196142,1704979839867,-500.0,0.00039178,4]
[311196143,1704979839877,-505.62932385,0.00039178,4]
[311196144,1704979839886,-507.18698938,0.00039178,4]
[311196145,1704979839895,-500.0,0.00039178,4]
[311196146,1704979839904,-504.41216284,0.00039178,4]
[311196147,1704979839913,-500.0,0.00039178,4]
[311196148,1704979839925,-514.53381136,0.00039178,4]
[311196149,1704979839934,-507.38861276,0.00039178,4]
[311196150,1704979839943,-500.0,0.00039178,4]
[311196151,1704979839954,-507.50864845,0.00039178,4]
[311196152,1704979839963,-500.0,0.00039178,4]
[311196153,1704979839973,-507.33165292,0.00039178,4]
[311196154,1704979839982,-500.0,0.00039178,4]
[311196155,1704979839991,-500.0,0.00039178,4]
[311196156,1704979840000,-591.12,0.00039178,4]
[311196157,1704979840010,-511.2333663,0.00039178,4]
[311196158,1704979840019,-511.07464106,0.00039178,4]
[311196159,1704979840029,-500.0,0.00039178,4]
[311196160,1704979840038,-500.0,0.00039178,4]
[311196161,1704979840047,-514.72449422,0.00039178,4]
[311196162,1704979840057,-261.57,0.00039178,4]
[311196166,1704979840070,-355.17999226,0.00039178,4]
[311196169,1704979840079,-499.0,0.00039178,4]
[311196170,1704979840088,-511.50360793,0.00039178,4]
[311196172,1704979840098,-504.4589545,0.00039178,4]
[311196174,1704979840107,-500.0,0.00039178,4]
[311196176,1704979840117,-284.59181985,0.00039178,4]
[311196177,1704979840126,-500.0,0.00039178,4]
[311196178,1704979840135,-500.0,0.00039178,4]
[311196179,1704979840145,-500.0,0.00039178,4]
[311196180,1704979840154,-233.82,0.00039178,4]
[311196181,1704979840164,-500.0,0.00039178,4]
[311196182,1704979840176,-500.0,0.00039178,4]
[311196184,1704979840185,-500.0,0.00039178,4]
[311196185,1704979840195,-500.0,0.00039178,4]
[311196187,1704979840205,-500.0,0.00039178,4]
[311196189,1704979840215,-500.23835312,0.00039178,4]
[311196192,1704979840225,-500.0,0.00039178,4]
[311196194,1704979840234,-411.39,0.00039178,4]
[311196196,1704979840244,-500.0,0.00039178,4]
[311196198,1704979840256,-163.6,0.00039178,4]
[311196200,1704979840266,-500.0,0.00039178,4]
[311196202,1704979840275,-500.0,0.00039178,4]
[311196204,1704979840285,-500.0,0.00039178,4]
[311196205,1704979840295,-500.90413836,0.00039178,4]
[311196208,1704979840305,-500.0,0.00039178,4]
[311196209,1704979840315,-500.0,0.00039178,4]
[311196211,1704979840325,-392.22,0.00039178,4]
[311196212,1704979840334,-500.0,0.00039178,4]
[311196213,1704979840345,-500.0,0.00039178,4]
[311196214,1704979840354,-337.76408728,0.00039178,4]
[311196215,1704979840364,-500.0,0.00039178,4]
[311196216,1704979840374,-500.0,0.00039178,4]
[311196217,1704979840384,-500.0,0.00039178,4]
[311196218,1704979840394,-500.0,0.00039178,4]
[311196219,1704979840404,-500.0,0.00039178,4]
[311196220,1704979840414,-500.0,0.00039178,4]
[311196221,1704979840426,-647.79,0.00039178,4]
[311196222,1704979840435,-500.0,0.00039178,4]
[311196223,1704979840444,-512.03374377,0.00039178,4]
[311196224,1704979840453,-500.0,0.00039178,4]
[311196225,1704979840464,-500.0,0.00039178,4]
[311196226,1704979840473,-500.0,0.00039178,4]
[311196227,1704979840483,-500.0,0.00039178,4]
[311196228,1704979840493,-512.30899125,0.00039178,4]
[311196229,1704979840503,-512.85847281,0.00039178,4]
[311196230,1704979840513,-566.32070892,0.00039178,4]
[311196231,1704979840523,-1019.17673284,0.00039178,4]
[311196232,1704979840532,-500.0,0.00039178,4]
[311196233,1704979840542,-500.0,0.00039178,4]
[311196234,1704979840552,-500.0,0.00039178,4]
[311196235,1704979840563,-500.0,0.00039178,4]
[311196236,1704979840572,-500.0,0.00039178,4]
[311196237,1704979840582,-500.0,0.00039178,4]
[311196238,1704979840591,-500.0,0.00039178,4]
[311196239,1704979840601,-500.0,0.00039178,4]
[311196240,1704979840611,-500.0,0.00039178,4]
[311196241,1704979840620,-154.40371092,0.00039178,4]
[311196242,1704979840630,-504.4760694,0.00039178,4]
[311196243,1704979840640,-500.0,0.00039178,4]
[311196244,1704979840650,-500.0,0.00039178,4]
[311196245,1704979840659,-506.01342801,0.00039178,4]
[311196246,1704979840672,-500.0,0.00039178,4]
[311196247,1704979840682,-500.0,0.00039178,4]
[311196248,1704979840691,-500.0,0.00039178,4]
[311196249,1704979840701,-500.0,0.00039178,4]
[311196250,1704979840710,-500.0,0.00039178,4]
[311196251,1704979840719,-500.0,0.00039178,4]
[311196252,1704979840729,-500.0,0.00039178,4]
[311196253,1704979840738,-597.23255243,0.00039178,15]
[311196254,1704979840751,-500.0,0.00039178,4]
[311196255,1704979840760,-325.30483787,0.00039178,4]
[311196256,1704979840770,-500.0,0.00039178,4]
[311196257,1704979840779,-426.60019038,0.00039178,4]
[311196258,1704979840789,-500.0,0.00039178,4]
[311196259,1704979840799,-500.0,0.00039178,4]
[311196260,1704979840808,-500.0,0.00039178,4]
[311196261,1704979840818,-500.0,0.00039178,4]
[311196262,1704979840827,-500.0,0.00039178,4]
[311196263,1704979840837,-500.0,0.00039178,4]
[311196264,1704979840846,-500.0,0.00039178,4]
[311196265,1704979840856,-639.19420847,0.00039178,4]
[311196266,1704979840865,-500.0,0.00039178,4]
[311196267,1704979840874,-311.36249955,0.00039178,4]
[311196268,1704979840884,-500.0,0.00039178,4]
[311196269,1704979840894,-265.51,0.00039178,4]
[311196270,1704979840904,-500.0,0.00039178,4]
[311196271,1704979840913,-500.0,0.00039178,4]
[311196272,1704979840925,-500.0,0.00039178,4]
[311196273,1704979840935,-500.0,0.00039178,4]
[311196274,1704979840945,-500.0,0.00039178,4]
[311196275,1704979840954,-500.0,0.00039178,4]
[311196276,1704979840963,-500.0,0.00039178,4]
[311196277,1704979840972,-500.0,0.00039178,4]
[311196278,1704979840982,-522.20974337,0.00039178,4]
[311196279,1704979840991,-500.0,0.00039178,4]
[311196280,1704979841000,-416.53575734,0.00039178,4]
[311196281,1704979841009,-500.0,0.00039178,4]
[311196282,1704979841018,-500.0,0.00039178,4]
[311196283,1704979841028,-500.0,0.00039178,4]
[311196284,1704979841037,-500.0,0.00039178,4]
[311196285,1704979841047,-500.0,0.00039178,4]
[311196286,1704979841056,-500.0,0.00039178,4]
[311196287,1704979841066,-500.0,0.00039178,4]
[311196288,1704979841075,-500.0,0.00039178,4]
[311196289,1704979841084,-500.0,0.00039178,4]
[311196290,1704979841093,-500.0,0.00039178,4]
[311196291,1704979841103,-500.0,0.00039178,4]
[311196292,1704979841112,-500.0,0.00039178,2]
[311196293,1704979841122,-500.0,0.00039178,4]
[311196294,1704979841131,-500.0,0.00039178,4]
[311196295,1704979841141,-500.0,0.00039178,4]
[311196296,1704979841150,-500.0,0.00039178,4]
[311196297,1704979841159,-500.0,0.00039178,4]
[311196298,1704979841172,-500.0,0.00039178,4]
[311196299,1704979841182,-500.0,0.00039178,4]
[311196300,1704979841192,-500.0,0.00039178,4]
[311196301,1704979841201,-500.0,0.00039178,4]
[311196303,1704979841211,-500.0,0.00039178,4]
[311196305,1704979841221,-500.0,0.00039178,4]
[311196308,1704979841230,-500.0,0.00039178,4]
[311196310,1704979841239,-500.0,0.00039178,4]
[311196312,1704979841249,-500.0,0.00039178,4]
[311196314,1704979841259,-500.0,0.00039178,4]
[311196316,1704979841268,-500.0,0.00039178,4]
[311196318,1704979841277,-500.0,0.00039178,4]
[311196320,1704979841286,-500.0,0.00039178,4]
[311196321,1704979841295,-500.0,0.00039178,4]
[311196322,1704979841304,-500.0,0.00039178,4]
[311196323,1704979841314,-500.0,0.00039178,4]
[311196324,1704979841323,-500.0,0.00039178,4]
[311196325,1704979841332,-500.0,0.00039178,4]
[311196326,1704979841341,-500.0,0.00039178,4]
[311196327,1704979841350,-500.0,0.00039178,4]
[311196328,1704979841360,-500.0,0.00039178,4]
[311196329,1704979841371,-500.0,0.00039178,4]
[311196330,1704979841380,-500.0,0.00039178,4]
[311196331,1704979841390,-500.0,0.00039178,4]
[311196333,1704979841399,-511.58219242,0.00039178,4]
[311196334,1704979841410,-500.0,0.00039178,4]
[311196335,1704979841421,-500.0,0.00039178,4]
[311196336,1704979841431,-500.0,0.00039178,4]
[311196337,1704979841440,-257.88534512,0.00039178,4]
[311196338,1704979841450,-500.0,0.00039178,4]
[311196339,1704979841459,-500.0,0.00039178,4]
[311196340,1704979841469,-500.0,0.00039178,4]
[311196341,1704979841479,-500.0,0.00039178,4]
[311196342,1704979841488,-500.0,0.00039178,4]
[311196343,1704979841498,-500.0,0.00039178,4]
[311196344,1704979841507,-500.0,0.00039178,4]
[311196345,1704979841517,-475.17,0.00039178,4]
[311196346,1704979841527,-500.0,0.00039178,4]
[311196347,1704979841536,-504.63785913,0.00039178,4]
[311196348,1704979841546,-312.63,0.00039178,4]
[311196349,1704979841556,-500.0,0.00039178,4]
[311196350,1704979841565,-500.0,0.00039178,4]
[311196351,1704979841574,-500.0,0.00039178,7]
[311196352,1704979841583,-512.64,0.00039178,4]
[311196353,1704979841593,-500.0,0.00039178,4]
[311196354,1704979841602,-356.18424451,0.00039178,4]
[311196355,1704979841611,-298.36342894,0.00039178,4]
[311196356,1704979841620,-500.0,0.00039178,4]
[311196357,1704979841629,-500.0,0.00039178,4]
[311196358,1704979841640,-500.0,0.00039178,4]
[311196359,1704979841649,-500.0,0.00039178,4]
[311196360,1704979841659,-500.0,0.00039178,4]
[311196361,1704979841670,-500.0,0.00039178,4]
[311196362,1704979841679,-500.0,0.00039178,4]
[311196363,1704979841688,-500.0,0.00039178,4]
[311196364,1704979841697,-500.0,0.00039178,4]
[311196365,1704979841706,-503.77794652,0.00039178,4]
[311196366,1704979841715,-500.0,0.00039178,4]
[311196367,1704979841724,-500.0,0.00039178,4]
[311196368,1704979841733,-500.0,0.00039178,4]
[311196369,1704979841741,-500.0,0.00039178,4]
[311196370,1704979841750,-500.0,0.00039178,4]
[311196371,1704979841760,-500.0,0.00039178,4]
[311196372,1704979841769,-500.0,0.00039178,4]
[311196373,1704979841778,-310.58743368,0.00039178,4]
[311196374,1704979841787,-502.03059583,0.00039178,4]
[311196375,1704979841798,-500.0,0.00039178,4]
[311196376,1704979841807,-500.0,0.00039178,4]
[311196377,1704979841816,-506.27777372,0.00039178,4]
[311196378,1704979841826,-507.12081051,0.00039178,4]
[311196379,1704979841835,-500.0,0.00039178,4]
[311196380,1704979841844,-500.0,0.00039178,4]
[311196381,1704979841853,-500.0,0.00039178,4]
[311196382,1704979841863,-510.12733555,0.00039178,4]
[311196383,1704979841873,-500.0,0.00039178,4]
[311196384,1704979841882,-500.0,0.00039178,4]
[311196385,1704979841892,-500.0,0.00039178,4]
[311196386,1704979841901,-500.0,0.00039178,4]
[311196387,1704979841911,-500.0,0.00039178,4]
[311196388,1704979841921,-500.0,0.00039178,4]
[311196389,1704979841931,-500.0,0.00039178,4]
[311196390,1704979841940,-500.0,0.00039178,4]
[311196391,1704979841949,-500.0,0.00039178,4]
[311196392,1704979841958,-500.0,0.00039178,4]
[311196393,1704979841968,-500.0,0.00039178,4]
[311196394,1704979841977,-500.0,0.00039178,4]
[311196395,1704979841986,-500.0,0.00039178,4]
[311196396,1704979841996,-500.0,0.00039178,4]
[311196397,1704979842005,-500.0,0.00039178,4]
[311196398,1704979842015,-500.0,0.00039178,4]
[311196399,1704979842024,-500.0,0.00039178,4]
[311196400,1704979842033,-500.0,0.00039178,4]
[311196401,1704979842042,-500.0,0.00039178,4]
[311196402,1704979842052,-500.0,0.00039178,4]
[311196403,1704979842061,-500.0,0.00039178,4]
[311196404,1704979842071,-501.97770189,0.00039178,4]
[311196405,1704979842080,-500.0,0.00039178,4]
[311196406,1704979842089,-500.0,0.00039178,4]
[311196407,1704979842098,-504.58288739,0.00039178,4]
[311196408,1704979842109,-150.0,0.00039178,4]
[311196409,1704979842119,-500.0,0.00039178,4]
[311196410,1704979842128,-500.0,0.00039178,4]
[311196411,1704979842138,-500.0,0.00039178,4]
[311196412,1704979842148,-500.0,0.00039178,4]
[311196413,1704979842157,-500.0,0.00039178,4]
[311196414,1704979842167,-214.52,0.00039178,4]
[311196415,1704979842179,-500.0,0.00039178,4]
[311196416,1704979842188,-500.0,0.00039178,4]
[311196417,1704979842197,-539.25,0.00039178,4]
[311196418,1704979842207,-500.0,0.00039178,4]
[311196419,1704979842217,-500.0,0.00039178,4]
[311196420,1704979842227,-500.0,0.00039178,4]
[311196421,1704979842236,-512.3161105,0.00039178,4]
[311196422,1704979842246,-500.0,0.00039178,4]
[311196423,1704979842258,-500.0,0.00039178,4]
[311196424,1704979842268,-500.0,0.00039178,4]
[311196427,1704979842475,-500.0,0.00039178,4]
[311196428,1704979842486,-500.0,0.00039178,4]
[311196429,1704979842497,-500.0,0.00039178,4]
[311196430,1704979842508,-500.0,0.00039178,4]
[311196432,1704979842518,-500.0,0.00039178,4]
[311196434,1704979842529,-397.21,0.00039178,4]
[311196436,1704979842540,-505.68553222,0.00039178,4]
[311196437,1704979842550,-500.0,0.00039178,4]
[311196439,1704979842562,-500.0,0.00039178,4]
[311196442,1704979842573,-500.0,0.00039178,4]
[311196445,1704979842585,-513.4077277,0.00039178,4]
[311196448,1704979842596,-174.94,0.00039178,4]
[311196451,1704979842607,-484.23,0.00039178,4]
[311196456,1704979842618,-500.0,0.00039178,4]
[311196461,1704979842629,-500.0,0.00039178,4]
[311196463,1704979842640,-500.0,0.00039178,4]
[311196465,1704979842650,-500.0,0.00039178,4]
[311196467,1704979842660,-500.0,0.00039178,4]
[311196469,1704979842672,-295.94,0.00039178,4]
[311196471,1704979842682,-500.0,0.00039178,4]
[311196473,1704979842691,-500.0,0.00039178,4]
[311196475,1704979842701,-500.0,0.00039178,4]
[311196477,1704979842710,-500.0,0.00039178,4]
[311196479,1704979842720,-505.85777276,0.00039178,4]
[311196481,1704979842729,-500.0,0.00039178,4]
[311196483,1704979842740,-185.68071377,0.00039178,4]
[311196485,1704979842749,-500.0,0.00039178,4]
[311196487,1704979842758,-500.0,0.00039178,4]
[311196490,1704979842767,-581.84793769,0.00039178,4]
[311196492,1704979842777,-500.0,0.00039178,4]
[311196494,1704979842786,-512.70611397,0.00039178,4]
[311196496,1704979842796,-500.0,0.00039178,4]
[311196498,1704979842805,-500.0,0.00039178,4]
[311196500,1704979842815,-505.07308341,0.00039178,4]
[311196502,1704979842824,-500.0,0.00039178,4]
[311196503,1704979842834,-505.2456574,0.00039178,4]
[311196504,1704979842843,-500.0,0.00039178,4]
[311196505,1704979842852,-500.0,0.00039178,4]
[311196506,1704979842862,-500.0,0.00039178,4]
[311196507,1704979842871,-500.0,0.00039178,4]
[311196508,1704979842881,-500.0,0.00039178,4]
[311196509,1704979842891,-500.0,0.00039178,4]
[311196510,1704979842900,-500.0,0.00039178,4]
[311196511,1704979842909,-509.45294938,0.00039178,4]
[311196512,1704979842920,-269.45863961,0.00039178,4]
[311196513,1704979842930,-500.0,0.00039178,4]
[311196514,1704979842941,-310.96,0.00039178,4]
[311196515,1704979842952,-592.44,0.00039178,4]
[311196516,1704979842962,-504.9394714,0.00039178,4]
[311196517,1704979842973,-507.23901519,0.00039178,4]
[311196518,1704979842984,-155.67360872,0.00039178,4]
[311196519,1704979842995,-500.0,0.00039178,4]
[311196520,1704979843006,-506.93903358,0.00039178,4]
[311196521,1704979843018,-512.22068196,0.00039178,4]
[311196522,1704979843030,-519.35,0.00039178,4]
[311196523,1704979843041,-500.0,0.00039178,4]
[311196524,1704979843052,-500.0,0.00039178,4]
[311196525,1704979843062,-500.0,0.00039178,4]
[311196527,1704979843073,-509.29153633,0.00039178,4]
[311196529,1704979843082,-508.95646411,0.00039178,4]
[311196531,1704979843094,-532.83,0.00039178,4]
[311196533,1704979843105,-500.0,0.00039178,4]
[311196535,1704979843115,-500.0,0.00039178,4]
[311196537,1704979843128,-500.0,0.00039178,4]
[311196539,1704979843140,-500.0,0.00039178,4]
[311196541,1704979843150,-503.90241265,0.00039178,4]
[311196544,1704979843161,-500.0,0.00039178,4]
[311196546,1704979843174,-500.0,0.00039178,4]
[311196548,1704979843188,-500.0,0.00039178,4]
[311196550,1704979843198,-500.0,0.00039178,4]
[311196552,1704979843209,-500.0,0.00039178,4]
[311196554,1704979843219,-500.0,0.00039178,4]
[311196556,1704979843232,-509.45693545,0.00039178,4]
[311196558,1704979843244,-512.56283134,0.00039178,4]
[311196560,1704979843255,-500.0,0.00039178,4]
[311196562,1704979843266,-1000.0,0.00039178,2]
[311196564,1704979843277,-500.0,0.00039178,4]
[311196566,1704979843288,-500.0,0.00039178,4]
[311196568,1704979843299,-507.4361881,0.00039178,4]
[311196569,1704979843310,-500.0,0.00039178,4]
[311196570,1704979843320,-154.2,0.00039178,4]
[311196572,1704979843331,-500.0,0.00039178,4]
[311196574,1704979843341,-7021.77,0.00039178,4]
[311196576,1704979843352,-500.0,0.00039178,4]
[311196578,1704979843363,-500.0,0.00039178,4]
[311196580,1704979843373,-500.0,0.00039178,4]
[311196582,1704979843384,-500.0,0.00039178,4]
[311196585,1704979843395,-500.0,0.00039178,4]
[311196587,1704979843407,-500.0,0.00039178,4]
[311196589,1704979843417,-500.0,0.00039178,4]
[311196590,1704979843435,-500.0,0.00039178,4]
[311196592,1704979843446,-500.0,0.00039178,4]
[311196594,1704979843457,-500.0,0.00039178,4]
[311196596,1704979843468,-500.0,0.00039178,4]
[311196598,1704979843479,-500.0,0.00039178,4]
[311196600,1704979843490,-500.0,0.00039178,4]
[311196602,1704979843501,-500.0,0.00039178,4]
[311196604,1704979843511,-500.0,0.00039178,4]
[311196606,1704979843522,-500.0,0.00039178,4]
[311196608,1704979843533,-500.0,0.00039178,4]
[311196610,1704979843544,-794.87,0.00039178,4]
[311196612,1704979843555,-500.0,0.00039178,4]
[311196614,1704979843566,-509.67,0.00039178,4]
[311196615,1704979843577,-500.0,0.00039178,4]
[311196616,1704979843590,-500.0,0.00039178,4]
[311196617,1704979843602,-500.0,0.00039178,4]
[311196618,1704979843613,-500.0,0.00039178,4]
[311196619,1704979843624,-500.0,0.00039178,4]
[311196620,1704979843635,-500.0,0.00039178,4]
[311196621,1704979843646,-500.0,0.00039178,4]
[311196622,1704979843657,-500.0,0.00039178,4]
[311196623,1704979843668,-500.0,0.00039178,4]
[311196624,1704979843686,-500.0,0.00039178,4]
[311196625,1704979843697,-502.12,0.00039178,4]
[311196626,1704979843708,-509.55727691,0.00039178,4]
[311196627,1704979843719,-660.97,0.00039178,4]
[311196628,1704979843730,-511.43384891,0.00039178,4]
[311196629,1704979843741,-500.0,0.00039178,4]
[311196630,1704979843752,-500.0,0.00039178,4]
[311196631,1704979843763,-500.0,0.00039178,4]
[311196632,1704979843774,-505.97211771,0.00039178,4]
[311196633,1704979843784,-500.0,0.00039178,4]
[311196634,1704979843794,-500.0,0.00039178,4]
[311196635,1704979843803,-500.0,0.00039178,4]
[311196636,1704979843813,-500.0,0.00039178,4]
[311196637,1704979843823,-508.70199194,0.00039178,4]
[311196638,1704979843833,-500.0,0.00039178,4]
[311196639,1704979843843,-500.0,0.00039178,4]
[311196640,1704979843853,-500.0,0.00039178,4]
[311196641,1704979843862,-500.0,0.00039178,4]
[311196642,1704979843871,-505.35903127,0.00039178,4]
[311196643,1704979843882,-344.34,0.00039178,4]
[311196644,1704979843891,-500.0,0.00039178,4]
[311196645,1704979843901,-500.0,0.00039178,4]
[311196646,1704979843911,-500.0,0.00039178,4]
[311196647,1704979843924,-500.0,0.00039178,4]
[311196648,1704979843934,-500.0,0.00039178,4]
[311196649,1704979843944,-500.0,0.00039178,4]
[311196650,1704979843955,-1019.0907113,0.00039178,4]
[311196651,1704979843965,-513.19951191,0.00039178,4]
[311196652,1704979843976,-500.0,0.00039178,4]
[311196653,1704979843986,-500.0,0.00039178,4]
[311196654,1704979843996,-500.0,0.00039178,4]
[311196655,1704979844007,-271.06,0.00039178,4]
[311196656,1704979844019,-500.0,0.00039178,4]
[311196657,1704979844030,-500.0,0.00039178,4]
[311196658,1704979844041,-503.89559977,0.00039178,4]
[311196659,1704979844051,-500.0,0.00039178,4]
[311196660,1704979844062,-1164.67,0.00039178,4]
[311196661,1704979844073,-500.0,0.00039178,4]
[311196662,1704979844083,-500.0,0.00039178,4]
[311196663,1704979844096,-278.62795246,0.00039178,4]
[311196664,1704979844106,-500.0,0.00039178,4]
[311196665,1704979844117,-1105.32,0.00039178,4]
[311196666,1704979844128,-508.23163496,0.00039178,4]
[311196667,1704979844138,-503.24648716,0.00039178,4]
[311196668,1704979844148,-508.91921037,0.00039178,4]
[311196669,1704979844162,-500.0,0.00039178,4]
[311196670,1704979844176,-854.35,0.00039178,4]
[311196671,1704979844187,-500.0,0.00039178,4]
[311196672,1704979844197,-500.0,0.00039178,4]
[311196673,1704979844207,-500.0,0.00039178,4]
[311196674,1704979844217,-500.0,0.00039178,4]
[311196675,1704979844227,-500.0,0.00039178,4]
[311196676,1704979844238,-510.55954918,0.00039178,4]
[311196677,1704979844248,-457.82562037,0.00039178,4]
[311196678,1704979844263,-500.0,0.00039178,4]
[311196679,1704979844273,-508.91903498,0.00039178,4]
[311196680,1704979844283,-500.0,0.00039178,4]
[311196681,1704979844295,-500.0,0.00039178,4]
[311196682,1704979844306,-500.0,0.00039178,4]
[311196683,1704979844318,-500.0,0.00039178,4]
[311196684,1704979844329,-500.0,0.00039178,4]